[Event "Titled Tuesday Blitz August 08 Late 2023"]
[White "Rosen, Eric"]
[Black "Beulen, Marcel"]
[WhiteFideId "2032562"]
[BlackFideId "1001450"]
[WhiteElo "2622"]
[BlackElo "2380"]
[Result "1-0"]
[Round "2"]
[TimeControl "180+1"]
[Date "2023.08.08"]
[WhiteClock "0:00:37"]
[BlackClock "0:00:02"]
[Board "120"]

1. d4 {[%clk 0:03:00]}  d5 {[%clk 0:02:59]} 2. Bf4 {[%clk 0:03:00]}  Nf6 {[%clk 0:02:59]} 3. e3 {[%clk 0:03:00]}  c6 {[%clk 0:02:54]} 4. Nf3 {[%clk 0:03:01]}  Bg4 {[%clk 0:02:54]} 5. Nbd2 {[%clk 0:03:00]}  Nbd7 {[%clk 0:02:54]} 6. c4 {[%clk 0:03:00]}  e6 {[%clk 0:02:54]} 7. Qb3 {[%clk 0:03:00]}  Qc8 {[%clk 0:02:45]} 8. h3 {[%clk 0:02:54]}  Bxf3 {[%clk 0:02:44]} 9. Nxf3 {[%clk 0:02:54]}  Be7 {[%clk 0:02:45]} 10. Rc1 {[%clk 0:02:54]}  O-O {[%clk 0:02:44]} 11. Be2 {[%clk 0:02:54]}  Ne4 {[%clk 0:02:33]} 12. O-O {[%clk 0:02:49]}  Bd6 {[%clk 0:02:25]} 13. Bxd6 {[%clk 0:02:45]}  Nxd6 {[%clk 0:02:26]} 14. Nd2 {[%clk 0:02:46]}  Nf6 {[%clk 0:02:10]} 15. Bd3 {[%clk 0:02:44]}  Qd7 {[%clk 0:01:58]} 16. Rfd1 {[%clk 0:02:43]}  Rfd8 {[%clk 0:01:54]} 17. Qa3 {[%clk 0:02:43]}  dxc4 {[%clk 0:01:31]} 18. Nxc4 {[%clk 0:02:43]}  Nxc4 {[%clk 0:01:31]} 19. Bxc4 {[%clk 0:02:44]}  a6 {[%clk 0:01:30]} 20. Qa5 {[%clk 0:02:33]}  Rac8 {[%clk 0:01:29]} 21. Be2 {[%clk 0:02:32]}  Qc7 {[%clk 0:01:29]} 22. Qa4 {[%clk 0:02:25]}  e5 {[%clk 0:01:23]} 23. dxe5 {[%clk 0:01:51]}  Qxe5 {[%clk 0:01:22]} 24. Qb3 {[%clk 0:01:52]}  Qe7 {[%clk 0:01:19]} 25. Bc4 {[%clk 0:01:49]}  Ne4 {[%clk 0:01:09]} 26. Qc2 {[%clk 0:01:45]}  h6 {[%clk 0:00:53]} 27. Bd3 {[%clk 0:01:45]}  Nf6 {[%clk 0:00:51]} 28. b4 {[%clk 0:01:38]}  Rd6 {[%clk 0:00:49]} 29. Bc4 {[%clk 0:01:28]}  Rcd8 {[%clk 0:00:49]} 30. Rxd6 {[%clk 0:01:28]}  Qxd6 {[%clk 0:00:46]} 31. a3 {[%clk 0:01:29]}  Qd2 {[%clk 0:00:45]} 32. Qb1 {[%clk 0:01:22]}  Kf8 {[%clk 0:00:33]} 33. Bb3 {[%clk 0:01:21]}  Qd3 {[%clk 0:00:32]} 34. Qa2 {[%clk 0:01:14]}  Qd7 {[%clk 0:00:30]} 35. Rd1 {[%clk 0:01:11]}  Qe7 {[%clk 0:00:29]} 36. Rxd8+ {[%clk 0:01:09]}  Qxd8 {[%clk 0:00:30]} 37. Bxf7 {[%clk 0:01:09]}  Ne4 {[%clk 0:00:30]} 38. Bb3 {[%clk 0:00:50]}  Qf6 {[%clk 0:00:26]} 39. Qc2 {[%clk 0:00:37]}  Qa1+ {[%clk 0:00:20]} 40. Kh2 {[%clk 0:00:37]}  Qxa3 {[%clk 0:00:21]} 41. Qc4 {[%clk 0:00:38]}  Nd6 {[%clk 0:00:08]} 42. Qg8+ {[%clk 0:00:37]}  Ke7 {[%clk 0:00:08]} 43. Qe6+ {[%clk 0:00:37]}  Kf8 {[%clk 0:00:02]} 44. Qxd6+ {[%clk 0:00:37]} 1-0


[Site "https://www.chess.com"]

[Event "Titled Tuesday Blitz August 08 Late 2023"]
[White "Ventura Bolet, Maxim"]
[Black "Ozates, Tuna"]
[WhiteFideId "22238824"]
[BlackFideId "6354521"]
[WhiteElo "2379"]
[BlackElo "2615"]
[Result "0-1"]
[Round "2"]
[TimeControl "180+1"]
[Date "2023.08.08"]
[WhiteClock "0:00:01"]
[BlackClock "0:00:15"]
[Board "121"]

1. Nf3 {[%clk 0:03:00]}  c5 {[%clk 0:03:00]} 2. e4 {[%clk 0:03:00]}  Nc6 {[%clk 0:02:59]} 3. d4 {[%clk 0:02:58]}  cxd4 {[%clk 0:02:59]} 4. Nxd4 {[%clk 0:02:59]}  Nf6 {[%clk 0:03:00]} 5. Nc3 {[%clk 0:02:59]}  e5 {[%clk 0:03:00]} 6. Ndb5 {[%clk 0:03:00]}  d6 {[%clk 0:03:00]} 7. Nd5 {[%clk 0:03:00]}  Nxd5 {[%clk 0:03:00]} 8. exd5 {[%clk 0:03:01]}  Nb8 {[%clk 0:03:01]} 9. a4 {[%clk 0:02:58]}  Be7 {[%clk 0:03:01]} 10. c3 {[%clk 0:02:52]}  O-O {[%clk 0:03:02]} 11. Be2 {[%clk 0:02:53]}  f5 {[%clk 0:03:02]} 12. f4 {[%clk 0:02:51]}  e4 {[%clk 0:03:00]} 13. Be3 {[%clk 0:02:48]}  a6 {[%clk 0:02:59]} 14. Na3 {[%clk 0:02:48]}  Nd7 {[%clk 0:02:57]} 15. O-O {[%clk 0:02:47]}  Nf6 {[%clk 0:02:57]} 16. Nc4 {[%clk 0:02:43]}  Qe8 {[%clk 0:02:48]} 17. Nb6 {[%clk 0:02:38]}  Rb8 {[%clk 0:02:48]} 18. a5 {[%clk 0:02:33]}  Bd7 {[%clk 0:02:46]} 19. b4 {[%clk 0:02:26]}  Bd8 {[%clk 0:02:38]} 20. c4 {[%clk 0:02:22]}  Bxb6 {[%clk 0:02:38]} 21. Bxb6 {[%clk 0:02:22]}  Rc8 {[%clk 0:02:34]} 22. c5 {[%clk 0:02:14]}  Bb5 {[%clk 0:02:33]} 23. cxd6 {[%clk 0:02:04]}  Kh8 {[%clk 0:02:31]} 24. Bc5 {[%clk 0:01:44]}  Bxe2 {[%clk 0:02:24]} 25. Qxe2 {[%clk 0:01:45]}  Qd7 {[%clk 0:02:21]} 26. Rfd1 {[%clk 0:01:37]}  Ne8 {[%clk 0:02:21]} 27. Qb2 {[%clk 0:00:56]}  Nxd6 {[%clk 0:02:21]} 28. Qe5 {[%clk 0:00:57]}  Rf6 {[%clk 0:02:22]} 29. Rac1 {[%clk 0:00:55]}  Re8 {[%clk 0:02:21]} 30. Bxd6 {[%clk 0:00:51]}  Rxd6 {[%clk 0:02:17]} 31. Qd4 {[%clk 0:00:48]}  h6 {[%clk 0:02:11]} 32. Rc3 {[%clk 0:00:48]}  Rd8 {[%clk 0:02:07]} 33. Rc5 {[%clk 0:00:32]}  Rg6 {[%clk 0:02:03]} 34. Qe5 {[%clk 0:00:28]}  Qa4 {[%clk 0:02:02]} 35. Rdc1 {[%clk 0:00:22]}  Qxb4 {[%clk 0:01:43]} 36. Qxf5 {[%clk 0:00:20]}  Qd4+ {[%clk 0:01:39]} 37. Kh1 {[%clk 0:00:19]}  Rf6 {[%clk 0:01:39]} 38. Qe5 {[%clk 0:00:18]}  Qf2 {[%clk 0:01:27]} 39. Qxe4 {[%clk 0:00:17]}  Rxf4 {[%clk 0:01:26]} 40. Qe1 {[%clk 0:00:17]}  Qxe1+ {[%clk 0:01:03]} 41. Rxe1 {[%clk 0:00:17]}  Rd4 {[%clk 0:01:04]} 42. g3 {[%clk 0:00:12]}  R4xd5 {[%clk 0:01:03]} 43. Rc7 {[%clk 0:00:12]}  R8d7 {[%clk 0:01:01]} 44. Re8+ {[%clk 0:00:10]}  Kh7 {[%clk 0:01:01]} 45. Re7 {[%clk 0:00:10]}  Rxc7 {[%clk 0:00:47]} 46. Rxc7 {[%clk 0:00:10]}  Rxa5 {[%clk 0:00:48]} 47. Rxb7 {[%clk 0:00:10]}  Ra2 {[%clk 0:00:49]} 48. Rb6 {[%clk 0:00:05]}  a5 {[%clk 0:00:45]} 49. Ra6 {[%clk 0:00:05]}  Kg8 {[%clk 0:00:43]} 50. h4 {[%clk 0:00:05]}  Kf7 {[%clk 0:00:42]} 51. Kg1 {[%clk 0:00:05]}  Ke7 {[%clk 0:00:30]} 52. Kh1 {[%clk 0:00:05]}  a4 {[%clk 0:00:30]} 53. Kg1 {[%clk 0:00:06]}  a3 {[%clk 0:00:30]} 54. Kh1 {[%clk 0:00:06]}  Kd7 {[%clk 0:00:26]} 55. Ra7+ {[%clk 0:00:05]}  Ke6 {[%clk 0:00:21]} 56. Rxg7 {[%clk 0:00:05]}  Rb2 {[%clk 0:00:20]} 57. Rg6+ {[%clk 0:00:05]}  Kf5 {[%clk 0:00:20]} 58. Rxh6 {[%clk 0:00:05]}  a2 {[%clk 0:00:21]} 59. Ra6 {[%clk 0:00:05]}  Kg4 {[%clk 0:00:16]} 60. Kg1 {[%clk 0:00:02]}  Kxg3 {[%clk 0:00:14]} 61. Ra3+ {[%clk 0:00:01]}  Kxh4 {[%clk 0:00:14]} 62. Kf1 {[%clk 0:00:02]}  Rb1+ {[%clk 0:00:14]} 63. Ke2 {[%clk 0:00:03]}  a1=Q {[%clk 0:00:14]} 64. Rxa1 {[%clk 0:00:01]}  Rxa1 {[%clk 0:00:15]} 0-1


[Site "https://www.chess.com"]

[Event "Titled Tuesday Blitz August 08 Late 2023"]
[White "Arabidze, Meri"]
[Black "Necromon"]
[WhiteFideId "13604040"]
[WhiteElo "2605"]
[BlackElo "2371"]
[Result "1-0"]
[Round "2"]
[TimeControl "180+1"]
[Date "2023.08.08"]
[WhiteClock "0:01:05"]
[BlackClock "0:00:06"]
[Board "124"]

1. d4 {[%clk 0:03:00]}  c5 {[%clk 0:02:57]} 2. d5 {[%clk 0:03:00]}  Nf6 {[%clk 0:02:54]} 3. Nc3 {[%clk 0:03:01]}  d6 {[%clk 0:02:49]} 4. e4 {[%clk 0:03:01]}  g6 {[%clk 0:02:49]} 5. Be2 {[%clk 0:03:02]}  Bg7 {[%clk 0:02:49]} 6. Nf3 {[%clk 0:03:02]}  O-O {[%clk 0:02:49]} 7. O-O {[%clk 0:03:03]}  Bg4 {[%clk 0:02:48]} 8. Nd2 {[%clk 0:03:02]}  Bxe2 {[%clk 0:02:48]} 9. Qxe2 {[%clk 0:03:03]}  a6 {[%clk 0:02:48]} 10. a4 {[%clk 0:03:03]}  Nbd7 {[%clk 0:02:48]} 11. Nc4 {[%clk 0:03:03]}  Qc7 {[%clk 0:02:42]} 12. Re1 {[%clk 0:03:00]}  Rab8 {[%clk 0:02:32]} 13. a5 {[%clk 0:02:54]}  Rfe8 {[%clk 0:02:07]} 14. h3 {[%clk 0:02:48]}  e6 {[%clk 0:01:58]} 15. dxe6 {[%clk 0:02:48]}  Rxe6 {[%clk 0:01:57]} 16. Bf4 {[%clk 0:02:47]}  Ne5 {[%clk 0:01:50]} 17. Bxe5 {[%clk 0:02:40]}  dxe5 {[%clk 0:01:49]} 18. Red1 {[%clk 0:02:41]}  Nd7 {[%clk 0:01:35]} 19. Nd5 {[%clk 0:02:40]}  Qc8 {[%clk 0:01:28]} 20. b3 {[%clk 0:02:41]}  Nf8 {[%clk 0:01:20]} 21. Rd3 {[%clk 0:02:31]}  Qc6 {[%clk 0:01:16]} 22. Rad1 {[%clk 0:02:30]}  Rbe8 {[%clk 0:01:12]} 23. Ndb6 {[%clk 0:02:25]}  R6e7 {[%clk 0:01:06]} 24. c3 {[%clk 0:02:08]}  f6 {[%clk 0:01:03]} 25. Rd6 {[%clk 0:02:03]}  Qb5 {[%clk 0:01:01]} 26. Qa2 {[%clk 0:02:04]}  Rb8 {[%clk 0:00:49]} 27. Qa4 {[%clk 0:02:03]}  Qxa4 {[%clk 0:00:49]} 28. Nxa4 {[%clk 0:01:58]}  Ne6 {[%clk 0:00:48]} 29. Kh2 {[%clk 0:01:53]}  Kf7 {[%clk 0:00:47]} 30. Rd7 {[%clk 0:01:47]}  Kf8 {[%clk 0:00:44]} 31. g3 {[%clk 0:01:44]}  Rbe8 {[%clk 0:00:42]} 32. R7d6 {[%clk 0:01:36]}  Ng5 {[%clk 0:00:37]} 33. Nxc5 {[%clk 0:01:36]}  f5 {[%clk 0:00:38]} 34. exf5 {[%clk 0:01:31]}  gxf5 {[%clk 0:00:38]} 35. h4 {[%clk 0:01:31]}  Nf3+ {[%clk 0:00:38]} 36. Kg2 {[%clk 0:01:30]}  e4 {[%clk 0:00:38]} 37. R6d5 {[%clk 0:01:26]}  Bxc3 {[%clk 0:00:32]} 38. Rxf5+ {[%clk 0:01:25]}  Kg7 {[%clk 0:00:30]} 39. Nd6 {[%clk 0:01:22]}  Rf8 {[%clk 0:00:06]} 40. Ncxe4 {[%clk 0:01:05]} 1-0


[Site "https://www.chess.com"]

[Event "Titled Tuesday Blitz August 08 Late 2023"]
[White "Chen, Max"]
[Black "Sari, Yasin"]
[WhiteFideId "2622440"]
[BlackFideId "6320902"]
[WhiteElo "2604"]
[BlackElo "2370"]
[Result "0-1"]
[Round "2"]
[TimeControl "180+1"]
[Date "2023.08.08"]
[WhiteClock "0:00:00"]
[BlackClock "0:00:02"]
[Board "125"]

1. e4 {[%clk 0:02:54]}  c5 {[%clk 0:02:58]} 2. Ne2 {[%clk 0:02:52]}  d6 {[%clk 0:02:58]} 3. g3 {[%clk 0:02:52]}  Nf6 {[%clk 0:02:56]} 4. Bg2 {[%clk 0:02:53]}  Nc6 {[%clk 0:02:57]} 5. c3 {[%clk 0:02:51]}  g6 {[%clk 0:02:55]} 6. d4 {[%clk 0:02:51]}  cxd4 {[%clk 0:02:51]} 7. cxd4 {[%clk 0:02:52]}  Bg7 {[%clk 0:02:51]} 8. O-O {[%clk 0:02:52]}  O-O {[%clk 0:02:51]} 9. Nbc3 {[%clk 0:02:52]}  e5 {[%clk 0:02:49]} 10. d5 {[%clk 0:02:52]}  Ne7 {[%clk 0:02:44]} 11. f3 {[%clk 0:02:52]}  Ne8 {[%clk 0:02:39]} 12. Be3 {[%clk 0:02:51]}  f5 {[%clk 0:02:35]} 13. Rc1 {[%clk 0:02:51]}  Bd7 {[%clk 0:02:26]} 14. Qb3 {[%clk 0:02:45]}  b6 {[%clk 0:02:21]} 15. Nb5 {[%clk 0:02:38]}  h6 {[%clk 0:02:07]} 16. Rc2 {[%clk 0:02:32]}  a6 {[%clk 0:01:58]} 17. Na3 {[%clk 0:02:31]}  b5 {[%clk 0:01:54]} 18. f4 {[%clk 0:02:18]}  Kh7 {[%clk 0:01:43]} 19. Rfc1 {[%clk 0:02:12]}  fxe4 {[%clk 0:01:25]} 20. Bxe4 {[%clk 0:02:10]}  Bf5 {[%clk 0:01:26]} 21. Bxf5 {[%clk 0:01:58]}  Nxf5 {[%clk 0:01:26]} 22. Bf2 {[%clk 0:01:59]}  h5 {[%clk 0:01:04]} 23. Nb1 {[%clk 0:01:36]}  Bh6 {[%clk 0:00:58]} 24. Nd2 {[%clk 0:01:33]}  exf4 {[%clk 0:00:56]} 25. gxf4 {[%clk 0:01:33]}  Ra7 {[%clk 0:00:20]} 26. Nf3 {[%clk 0:01:29]}  Re7 {[%clk 0:00:15]} 27. Qd3 {[%clk 0:01:26]}  Qd7 {[%clk 0:00:07]} 28. Kh1 {[%clk 0:01:19]}  Nf6 {[%clk 0:00:07]} 29. Rg1 {[%clk 0:01:17]}  Rfe8 {[%clk 0:00:06]} 30. Ned4 {[%clk 0:01:05]}  Ng4 {[%clk 0:00:07]} 31. Nxf5 {[%clk 0:00:57]}  Qxf5 {[%clk 0:00:07]} 32. Qxf5 {[%clk 0:00:55]}  gxf5 {[%clk 0:00:08]} 33. Nd4 {[%clk 0:00:56]}  Bxf4 {[%clk 0:00:06]} 34. Nxf5 {[%clk 0:00:54]}  Re2 {[%clk 0:00:06]} 35. Rxe2 {[%clk 0:00:50]}  Rxe2 {[%clk 0:00:07]} 36. Bg3 {[%clk 0:00:46]}  Bxg3 {[%clk 0:00:07]} 37. Rxg3 {[%clk 0:00:45]}  Rxh2+ {[%clk 0:00:08]} 38. Kg1 {[%clk 0:00:46]}  Rxb2 {[%clk 0:00:07]} 39. Nxd6 {[%clk 0:00:46]}  Rxa2 {[%clk 0:00:07]} 40. Rd3 {[%clk 0:00:42]}  b4 {[%clk 0:00:05]} 41. Nc4 {[%clk 0:00:40]}  Rc2 {[%clk 0:00:03]} 42. d6 {[%clk 0:00:36]}  Nf6 {[%clk 0:00:03]} 43. d7 {[%clk 0:00:32]}  Nxd7 {[%clk 0:00:03]} 44. Rxd7+ {[%clk 0:00:33]}  Kg6 {[%clk 0:00:03]} 45. Rc7 {[%clk 0:00:32]}  Rc1+ {[%clk 0:00:02]} 46. Kf2 {[%clk 0:00:32]}  Kf6 {[%clk 0:00:03]} 47. Rc6+ {[%clk 0:00:32]}  Ke7 {[%clk 0:00:02]} 48. Ke2 {[%clk 0:00:29]}  b3 {[%clk 0:00:01]} 49. Kd2 {[%clk 0:00:27]}  b2 {[%clk 0:00:01]} 50. Rc7+ {[%clk 0:00:26]}  Kd8 {[%clk 0:00:01]} 51. Rh7 {[%clk 0:00:13]}  b1=Q {[%clk 0:00:01]} 52. Rh8+ {[%clk 0:00:13]}  Kc7 {[%clk 0:00:02]} 53. Ne3 {[%clk 0:00:11]}  Qb2+ {[%clk 0:00:01]} 54. Kd3 {[%clk 0:00:00]}  Qxh8 {[%clk 0:00:02]} 0-1


[Site "https://www.chess.com"]

[Event "Titled Tuesday Blitz August 08 Late 2023"]
[White "Ortmann, David"]
[Black "Barria Santos, Jose Guilherme"]
[WhiteFideId "4651588"]
[BlackFideId "1939300"]
[WhiteElo "2365"]
[BlackElo "2573"]
[Result "0-1"]
[Round "2"]
[TimeControl "180+1"]
[Date "2023.08.08"]
[WhiteClock "0:00:19"]
[BlackClock "0:02:05"]
[Board "127"]

1. Nf3 {[%clk 0:03:00]}  Nf6 {[%clk 0:02:56]} 2. c4 {[%clk 0:03:00]}  g6 {[%clk 0:02:57]} 3. Nc3 {[%clk 0:03:00]}  Bg7 {[%clk 0:02:58]} 4. e4 {[%clk 0:03:00]}  d6 {[%clk 0:02:40]} 5. d4 {[%clk 0:03:00]}  O-O {[%clk 0:02:41]} 6. Be2 {[%clk 0:03:00]}  c5 {[%clk 0:02:41]} 7. O-O {[%clk 0:03:00]}  Bg4 {[%clk 0:02:41]} 8. d5 {[%clk 0:02:58]}  e6 {[%clk 0:02:41]} 9. Bg5 {[%clk 0:02:47]}  Bxf3 {[%clk 0:02:40]} 10. Bxf3 {[%clk 0:02:47]}  exd5 {[%clk 0:02:40]} 11. exd5 {[%clk 0:02:47]}  Nbd7 {[%clk 0:02:38]} 12. Qd2 {[%clk 0:02:48]}  Ne5 {[%clk 0:02:34]} 13. Be2 {[%clk 0:02:46]}  a6 {[%clk 0:02:34]} 14. a4 {[%clk 0:02:46]}  Re8 {[%clk 0:02:32]} 15. Rae1 {[%clk 0:02:46]}  Qa5 {[%clk 0:02:32]} 16. f4 {[%clk 0:02:36]}  Ned7 {[%clk 0:02:29]} 17. f5 {[%clk 0:02:36]}  Qb4 {[%clk 0:02:25]} 18. b3 {[%clk 0:01:49]}  Ne4 {[%clk 0:02:20]} 19. Nxe4 {[%clk 0:01:48]}  Rxe4 {[%clk 0:02:21]} 20. Bd3 {[%clk 0:01:29]}  Qxd2 {[%clk 0:02:19]} 21. Bxd2 {[%clk 0:01:30]}  Rxe1 {[%clk 0:02:20]} 22. Rxe1 {[%clk 0:01:19]}  Bd4+ {[%clk 0:02:17]} 23. Kh1 {[%clk 0:01:16]}  Ne5 {[%clk 0:02:18]} 24. Bc2 {[%clk 0:01:10]}  b5 {[%clk 0:02:14]} 25. cxb5 {[%clk 0:00:59]}  axb5 {[%clk 0:02:15]} 26. Bf4 {[%clk 0:00:53]}  bxa4 {[%clk 0:02:08]} 27. Bxe5 {[%clk 0:00:48]}  Bxe5 {[%clk 0:02:09]} 28. bxa4 {[%clk 0:00:47]}  Rb8 {[%clk 0:02:09]} 29. Rb1 {[%clk 0:00:47]}  Rb4 {[%clk 0:02:06]} 30. Rxb4 {[%clk 0:00:45]}  cxb4 {[%clk 0:02:07]} 31. g4 {[%clk 0:00:42]}  gxf5 {[%clk 0:02:05]} 32. gxf5 {[%clk 0:00:42]}  h6 {[%clk 0:02:04]} 33. Kg2 {[%clk 0:00:42]}  Kg7 {[%clk 0:02:05]} 34. h3 {[%clk 0:00:42]}  Kf6 {[%clk 0:02:04]} 35. Kf3 {[%clk 0:00:41]}  Bd4 {[%clk 0:02:02]} 36. Ke4 {[%clk 0:00:41]}  Bc5 {[%clk 0:02:02]} 37. Bb3 {[%clk 0:00:39]}  Kg5 {[%clk 0:02:03]} 38. Kf3 {[%clk 0:00:34]}  Kxf5 {[%clk 0:02:02]} 39. a5 {[%clk 0:00:29]}  Ke5 {[%clk 0:02:02]} 40. a6 {[%clk 0:00:29]}  Kd4 {[%clk 0:02:03]} 41. Kf4 {[%clk 0:00:19]}  Kc3 {[%clk 0:02:03]} 42. Ba4 {[%clk 0:00:20]}  b3 {[%clk 0:02:02]} 43. Bxb3 {[%clk 0:00:19]}  Kxb3 {[%clk 0:02:03]} 44. Kf5 {[%clk 0:00:19]}  Kc4 {[%clk 0:02:04]} 45. Kf6 {[%clk 0:00:19]}  Kxd5 {[%clk 0:02:05]} 46. Kxf7 {[%clk 0:00:19]}  Kc6 {[%clk 0:02:04]} 47. Kg6 {[%clk 0:00:20]}  d5 {[%clk 0:02:02]} 48. Kxh6 {[%clk 0:00:19]}  d4 {[%clk 0:02:02]} 49. Kg7 {[%clk 0:00:18]}  d3 {[%clk 0:02:02]} 50. h4 {[%clk 0:00:19]}  d2 {[%clk 0:02:03]} 51. h5 {[%clk 0:00:19]}  d1=Q {[%clk 0:02:03]} 52. h6 {[%clk 0:00:20]}  Qd7+ {[%clk 0:02:04]} 53. Kg8 {[%clk 0:00:18]}  Qe8+ {[%clk 0:02:03]} 54. Kg7 {[%clk 0:00:19]}  Bd4+ {[%clk 0:02:04]} 55. Kh7 {[%clk 0:00:19]}  Qf7# {[%clk 0:02:05]} 0-1


[Site "https://www.chess.com"]

[Event "Titled Tuesday Blitz August 08 Late 2023"]
[White "Ncatt"]
[Black "Kochiev, Ivan"]
[BlackFideId "2917890"]
[WhiteElo "2364"]
[BlackElo "2545"]
[Result "1-0"]
[Round "2"]
[TimeControl "180+1"]
[Date "2023.08.08"]
[WhiteClock "0:00:12"]
[BlackClock "0:00:01"]
[Board "131"]

1. e4 {[%clk 0:03:00]}  e5 {[%clk 0:03:00]} 2. Nf3 {[%clk 0:02:59]}  Nf6 {[%clk 0:03:00]} 3. Nxe5 {[%clk 0:02:59]}  Nc6 {[%clk 0:03:01]} 4. Nxc6 {[%clk 0:02:53]}  dxc6 {[%clk 0:03:02]} 5. d3 {[%clk 0:02:48]}  Bc5 {[%clk 0:03:01]} 6. Be2 {[%clk 0:02:45]}  h5 {[%clk 0:02:58]} 7. Be3 {[%clk 0:02:45]}  Bxe3 {[%clk 0:02:57]} 8. fxe3 {[%clk 0:02:45]}  Ng4 {[%clk 0:02:48]} 9. Qd2 {[%clk 0:02:36]}  Qg5 {[%clk 0:02:36]} 10. Bxg4 {[%clk 0:02:32]}  hxg4 {[%clk 0:02:35]} 11. Nc3 {[%clk 0:02:30]}  Be6 {[%clk 0:02:30]} 12. O-O-O {[%clk 0:02:29]}  O-O-O {[%clk 0:02:30]} 13. Kb1 {[%clk 0:02:24]}  Qa5 {[%clk 0:02:25]} 14. g3 {[%clk 0:02:06]}  Rh5 {[%clk 0:02:22]} 15. Rhf1 {[%clk 0:02:03]}  Rdh8 {[%clk 0:02:19]} 16. Rf2 {[%clk 0:02:03]}  b5 {[%clk 0:01:59]} 17. b3 {[%clk 0:01:56]}  Qb4 {[%clk 0:01:20]} 18. Rdf1 {[%clk 0:01:46]}  a5 {[%clk 0:01:18]} 19. Kb2 {[%clk 0:01:40]}  Qe7 {[%clk 0:01:05]} 20. d4 {[%clk 0:01:32]}  f6 {[%clk 0:00:49]} 21. Ne2 {[%clk 0:01:26]}  Rxh2 {[%clk 0:00:40]} 22. Qxa5 {[%clk 0:01:26]}  Rxf2 {[%clk 0:00:31]} 23. Rxf2 {[%clk 0:01:26]}  Kb7 {[%clk 0:00:29]} 24. d5 {[%clk 0:01:12]}  Bd7 {[%clk 0:00:24]} 25. Nd4 {[%clk 0:01:05]}  Ra8 {[%clk 0:00:22]} 26. dxc6+ {[%clk 0:01:02]}  Bxc6 {[%clk 0:00:22]} 27. Nxc6 {[%clk 0:00:58]}  Qc5 {[%clk 0:00:20]} 28. Qb4 {[%clk 0:00:46]}  Kxc6 {[%clk 0:00:18]} 29. Qxc5+ {[%clk 0:00:44]}  Kxc5 {[%clk 0:00:19]} 30. Rf4 {[%clk 0:00:42]}  Re8 {[%clk 0:00:19]} 31. Rxg4 {[%clk 0:00:42]}  g5 {[%clk 0:00:20]} 32. Kc3 {[%clk 0:00:38]}  Re5 {[%clk 0:00:14]} 33. a4 {[%clk 0:00:34]}  Kb6 {[%clk 0:00:12]} 34. Kb4 {[%clk 0:00:22]}  c6 {[%clk 0:00:07]} 35. a5+ {[%clk 0:00:19]}  Ka6 {[%clk 0:00:06]} 36. c4 {[%clk 0:00:17]}  c5+ {[%clk 0:00:05]} 37. Kc3 {[%clk 0:00:14]}  b4+ {[%clk 0:00:02]} 38. Kd3 {[%clk 0:00:14]}  Kxa5 {[%clk 0:00:03]} 39. Ke2 {[%clk 0:00:14]}  Kb6 {[%clk 0:00:03]} 40. Kf3 {[%clk 0:00:14]}  Kc7 {[%clk 0:00:04]} 41. Kg2 {[%clk 0:00:14]}  Kd6 {[%clk 0:00:04]} 42. Kf3 {[%clk 0:00:14]}  Ke6 {[%clk 0:00:05]} 43. Kg2 {[%clk 0:00:15]}  Kf7 {[%clk 0:00:05]} 44. Kf3 {[%clk 0:00:15]}  Kg7 {[%clk 0:00:05]} 45. Kg2 {[%clk 0:00:15]}  Kh6 {[%clk 0:00:04]} 46. Kf2 {[%clk 0:00:14]}  Kg6 {[%clk 0:00:03]} 47. Kg2 {[%clk 0:00:15]}  Kh5 {[%clk 0:00:03]} 48. Kf3 {[%clk 0:00:15]}  Re6 {[%clk 0:00:03]} 49. e5 {[%clk 0:00:15]}  f5 {[%clk 0:00:01]} 50. Rd4 {[%clk 0:00:14]}  cxd4 {[%clk 0:00:01]} 51. exd4 {[%clk 0:00:14]}  Kg6 {[%clk 0:00:02]} 52. c5 {[%clk 0:00:14]}  Re8 {[%clk 0:00:02]} 53. c6 {[%clk 0:00:12]}  Rc8 {[%clk 0:00:02]} 54. d5 {[%clk 0:00:13]}  Kf7 {[%clk 0:00:03]} 55. Ke3 {[%clk 0:00:13]}  Ke7 {[%clk 0:00:03]} 56. Kd4 {[%clk 0:00:13]}  Rh8 {[%clk 0:00:04]} 57. d6+ {[%clk 0:00:13]}  Ke6 {[%clk 0:00:04]} 58. c7 {[%clk 0:00:13]}  Rf8 {[%clk 0:00:04]} 59. Kc5 {[%clk 0:00:11]}  f4 {[%clk 0:00:03]} 60. gxf4 {[%clk 0:00:11]}  gxf4 {[%clk 0:00:04]} 61. Kc6 {[%clk 0:00:12]}  f3 {[%clk 0:00:05]} 62. d7 {[%clk 0:00:12]}  f2 {[%clk 0:00:04]} 63. d8=Q {[%clk 0:00:11]}  Rxd8 {[%clk 0:00:04]} 64. cxd8=Q {[%clk 0:00:11]}  f1=Q {[%clk 0:00:05]} 65. Qd6+ {[%clk 0:00:11]}  Kf5 {[%clk 0:00:05]} 66. Qf6+ {[%clk 0:00:11]}  Ke4 {[%clk 0:00:01]} 67. Qxf1 {[%clk 0:00:12]} 1-0


[Site "https://www.chess.com"]